{"text_format":"1","workbook":"xlsx","n_sheets":3,"sheets":["Feuil1","Feuil2","Feuil3"],"not_rendered":{"charts":0,"images":26,"macros":1,"external_links":0,"defined_names":2,"comments":1,"pivot_tables":0},"unopened":[],"bounds":{"document_bytes":16777216,"sheet_cells":100000,"rows_first":2000,"rows_last":500,"rows_between":2000,"halvings":0,"cell_chars":16384,"cell_head_chars":4096},"cells_cut":0,"cells_raw":0,"read":"whole","date_system":"1900"}

{"sheet":"Feuil1","index":0,"n_rows":167,"n_cols":49,"rows_kept":167,"cut":false,"hidden":false,"merged":[[131,8,131,9],[3,8,3,23],[122,11,122,16],[123,11,123,16],[124,11,124,16],[125,11,125,16],[127,11,127,16],[128,11,128,16],[129,11,129,16],[130,11,130,16],[126,11,126,16],[29,23,29,27],[41,23,41,25],[159,2,160,26],[145,2,145,6],[122,2,122,7],[123,2,123,7],[123,20,123,25],[66,3,66,7],[66,24,66,26],[77,15,77,17],[77,6,77,8],[131,11,131,16],[87,2,87,6],[87,11,87,15],[87,20,87,24],[102,20,102,24],[96,3,96,7],[96,15,96,17],[96,24,96,26],[102,2,102,6],[114,2,114,12],[114,15,114,24],[92,15,92,17],[92,24,92,26],[109,4,109,6],[107,15,107,26],[151,2,152,6],[120,11,120,17],[120,20,120,26],[140,14,140,15],[139,7,139,25],[141,7,141,25],[145,7,145,25],[45,11,45,17],[45,20,45,26],[47,6,47,8],[147,7,147,25],[102,11,102,15],[92,6,92,8],[72,2,72,6],[72,11,72,15],[75,2,75,8],[109,23,109,25],[109,10,109,12],[109,17,109,18],[121,2,121,6],[107,2,107,7],[107,8,107,13],[121,20,121,24],[47,15,47,17],[143,16,143,17],[58,20,58,21],[62,4,62,7],[62,13,62,16],[62,22,62,25],[60,2,60,8],[60,20,60,26],[75,11,75,17],[75,20,75,26],[72,20,72,24],[60,11,60,17],[143,7,143,14],[143,18,143,25],[77,24,77,26],[121,7,121,9],[121,11,121,15],[121,16,121,18],[90,2,90,8],[90,11,90,17],[90,20,90,26],[132,11,132,16],[133,11,133,16],[122,20,122,25],[128,2,128,7],[168,17,168,19],[166,5,166,16],[154,7,154,11],[154,15,154,22],[151,7,152,25],[143,2,143,6],[116,1,116,2],[116,3,116,26],[120,2,120,8],[125,2,125,7],[126,2,126,7],[127,2,127,7],[135,17,135,18],[154,2,154,6],[149,2,149,6],[147,2,147,6],[141,2,141,6],[139,2,139,6],[149,7,149,25],[156,2,156,6],[156,7,156,25],[131,25,131,26],[166,17,166,21],[161,2,161,27],[129,2,129,7],[124,2,124,7],[14,9,14,13],[14,2,14,6],[14,23,14,27],[14,16,14,20],[29,2,29,6],[29,9,29,13],[29,16,29,20],[26,2,26,4],[26,9,26,11],[26,16,26,18],[26,23,26,25],[41,16,41,18],[41,9,41,11],[41,2,41,4],[57,2,57,6],[57,11,57,15],[57,20,57,24],[47,24,47,26],[45,2,45,8]]}
[]
[]
[]
[null,null,null,null,null,null,null,null,"              ADHEOS Centre LGBT Poitou-Charentes"]
[]
[null,null,null,null,null,"è","Choisir le nombre d'articles souhaité en utilisant l'ascenseur en bas à droite de chaque vignette."]
[null,null,null,null,null,"è","En cliquant sur une vignette vous pouvez télécharger le document  correspondant."]
[null,null,null,null,null,"è","Le bon de commande se remplit tout seul au fur et à mesure, il restera à saisir vos coordonnées"]
[null,null,null,null,null,null,"   au clavier dans les cases grisées en bas."]
[]
[]
[]
[]
[]
[null,null,"INTERVENTION MILIEU SCOLAIRE",null,null,null,null,null,null,"ETRE et se VIVRE HOMO ",null,null,null,null,null,null,"ETRE ET SE VIVRE TRANS",null,null,null,null,null,null,"HOMOPHOBIE AGRESSION ",null,null,null,null,null,null,null,"INTERVENTION MILIEU SCOLAIRE"]
[null,null,null,null,null,null,null,null,null,null,null,null,null,null,null,null,null,null,null,null,null,null,null,null,null,null,null,null,null,null,null,"http://www.adheos.org/fichierUploader/Depliant_ADHEOS_IMS_source2013.pdf"]
[]
[null,null,null,null,null,null,null,null,null,null,null,null,null,null,null,null,null,null,null,null,null,null,null,null,null,null,null,null,null,null,null,"ETRE et se VIVRE HOMO "]
[null,null,null,null,null,null,null,null,null,null,null,null,null,null,null,null,null,null,null,null,null,null,null,null,null,null,null,null,null,null,null,"http://www.adheos.org/fichierUploader/Brochure_ADHEOS_etre_et_se_vivre_homo.pdf"]
[]
[]
[null,null,null,null,null,null,null,null,null,null,null,null,null,null,null,null,null,null,null,null,null,null,null,null,null,null,null,null,null,null,null,"ETRE et se VIVRE TRANS"]
[null,null,null,null,null,null,null,null,null,null,null,null,null,null,null,null,null,null,null,null,null,null,null,null,null,null,null,null,null,null,null,"http://www.adheos.org/fichierUploader/Brochure_ADHEOS_ETRE_ET_SE_VIVRE_TRANS.pdf"]
[]
[null,null,null,null,null,null,null,null,null,null,null,null,null,null,null,null,null,null,null,null,null,null,null,null,null,null,null,null,null,null,null,"HOMOPHOBIE AGRESSION "]
[null,null,null,null,null,null,null,null,null,null,null,null,null,null,null,null,null,null,null,null,null,null,null,null,null,null,null,null,null,null,null,"http://www.adheos.org/fichierUploader/Brochure_ADHEOS_agression_homophobie_2013.pdf"]
[null,null,"Quantité :",null,null,null,null,null,null,"Quantité :",null,null,null,null,null,null,"Quantité :",null,null,null,null,null,null,"Quantité :"]
[]
[]
[null,null,"LGBT FORMATION ",null,null,null,null,null,null,"   ETRE et AGIR LGBT ",null,null,null,null,null,null," La SANTE des LESBIENNES ",null,null,null,null,null,null,"DEMANDE D' ASILE",null,null,null,null,null,null,null,"LGBT FORMATION"]
[null,null,null,null,null,null,null,null,null,null,null,null,null,null,null,null,null,null,null,null,null,null,null,null,null,null,null,null,null,null,null,"http://www.adheos.org/fichierUploader/Depliant_ADHEOS_LGBT_formation_source2013.pdf"]
[]
[]
[null,null,null,null,null,null,null,null,null,null,null,null,null,null,null,null,null,null,null,null,null,null,null,null,null,null,null,null,null,null,null,"ETRE et AGIR LGBT "]
[null,null,null,null,null,null,null,null,null,null,null,null,null,null,null,null,null,null,null,null,null,null,null,null,null,null,null,null,null,null,null,"http://www.adheos.org/fichierUploader/Brochure_ADHEOS_presentation_2013.pdf"]
[]
[]
[null,null,null,null,null,null,null,null,null,null,null,null,null,null,null,null,null,null,null,null,null,null,null,null,null,null,null,null,null,null,null,"La SANTE DES LESBIENNES"]
[null,null,null,null,null,null,null,null,null,null,null,null,null,null,null,null,null,null,null,null,null,null,null,null,null,null,null,null,null,null,null,"http://www.adheos.org/fichierUploader/depliant_ADHEOS_sante-en_A4_imprimable_sur_site.pdf"]
[]
[]
[null,null,"Quantité :",null,null,null,null,null,null,"Quantité :",null,null,null,null,null,null,"Quantité :",null,null,null,null,null,null,"Quantité :",null,null,null,null,null,null,null,"Demande d'asile"]
[null,null,null,null,null,null,null,null,null,null,null,null,null,null,null,null,null,null,null,null,null,null,null,null,null,null,null,null,null,null,null,"http://www.adheos.org/fichierUploader/Depliant_ADHEOS_refugies_source2015-V3.pdf"]
[]
[]
[null,null,"REACTION HOMOPHOBE",null,null,null,null,null,null,null,null,"HOMOPHOBIE FOOT",null,null,null,null,null,null,null,null,"LESBOPHOBIE VESTIAIRES"]
[]
[null,null,null,"http://www.adheos.org/fichierUploader/2013_ADHEOS_homophobie_choquant.pdf  ",null,null,null,null,null,null,null,null,"http://www.adheos.org/fichierUploader/2013_ADHEOS_homophobie_foot.pdf  ",null,null,null,null,null,null,null,null,"http://www.adheos.org/fichierUploader/2013_ADHEOS_homophobie_sport_fille.pdf",null,null,null,null,null,null,null,null,null,"REACTION HOMOPHOBE"]
[null,null,null,null,null,null,null,null,null,null,null,null,null,null,null,null,null,null,null,null,null,null,null,null,null,null,null,null,null,null,null,"http://www.adheos.org/fichierUploader/2013_ADHEOS_homophobie_choquant.pdf  "]
[]
[null,null,null,null,null,null,null,null,null,null,null,null,null,null,null,null,null,null,null,null,null,null,null,null,null,null,null,null,null,null,null,"HOMOPHOBIE FOOT"]
[null,null,null,null,null,null,null,null,null,null,null,null,null,null,null,null,null,null,null,null,null,null,null,null,null,null,null,null,null,null,null,"http://www.adheos.org/fichierUploader/2013_ADHEOS_homophobie_foot.pdf  "]
[]
[null,null,null,null,null,null,null,null,null,null,null,null,null,null,null,null,null,null,null,null,null,null,null,null,null,null,null,null,null,null,null,"LESBOPHOBIE VESTIAIRES"]
[null,null,null,null,null,null,null,null,null,null,null,null,null,null,null,null,null,null,null,null,null,null,null,null,null,null,null,null,null,null,null,"http://www.adheos.org/fichierUploader/2013_ADHEOS_homophobie_sport_fille.pdf"]
[]
[]
[null,null,"Quantité :    ",null,null,null,null,null,null,null,null,"Quantité :    ",null,null,null,null,null,null,null,null,"Quantité :    "]
[]
[]
[null,null,"\"PETITE\" HOMOPHOBIE",null,null,null,null,null,null,null,null,"L'HOMOPHOBIE TUE",null,null,null,null,null,null,null,null,"HOMOPHOBIE SUICIDE"]
[null,null,null,null,null,null,null,null,null,null,null,null,null,null,null,null,null,null,null,null,null,null,null,null,null,null,null,null,null,null,null,"PETITE HOMOPHOBIE"]
[null,null,null,"http://www.adheos.org/fichierUploader/2013_ADHEOS_bd.pdf",null,null,null,null,null,null,null,null,"http://www.adheos.org/fichierUploader/2013_ADHEOS_homophobie_tue.pdf",null,null,null,null,null,null,null,null,"http://www.adheos.org/fichierUploader/2013_ADHEOS_samy.pdf",null,null,null,null,null,null,null,null,null,"http://www.adheos.org/fichierUploader/2013_ADHEOS_bd.pdf",null,null,null,null,null,null,null,null,null,null,null,null,null,null,null,null,0]
[null,null,null,null,null,null,null,null,null,null,null,null,null,null,null,null,null,null,null,null,null,null,null,null,null,null,null,null,null,null,null,null,null,null,null,null,null,null,null,null,null,null,null,null,null,null,null,null,1]
[null,null,null,null,null,null,null,null,null,null,null,null,null,null,null,null,null,null,null,null,null,null,null,null,null,null,null,null,null,null,null,"l'HOMOPHOBIE TUE",null,null,null,null,null,null,null,null,null,null,null,null,null,null,null,null,2]
[null,null,null,null,null,null,null,null,null,null,null,null,null,null,null,null,null,null,null,null,null,null,null,null,null,null,null,null,null,null,null,"http://www.adheos.org/fichierUploader/2013_ADHEOS_homophobie_tue.pdf",null,null,null,null,null,null,null,null,null,null,null,null,null,null,null,null,3]
[null,null,null,null,null,null,null,null,null,null,null,null,null,null,null,null,null,null,null,null,null,null,null,null,null,null,null,null,null,null,null,null,null,null,null,null,null,null,null,null,null,null,null,null,null,null,null,null,4]
[null,null,null,null,null,null,null,null,null,null,null,null,null,null,null,null,null,null,null,null,null,null,null,null,null,null,null,null,null,null,null,{"$f":"U61","v":"HOMOPHOBIE SUICIDE"},null,null,null,null,null,null,null,null,null,null,null,null,null,null,null,null,5]
[null,null,null,null,null,null,null,null,null,null,null,null,null,null,null,null,null,null,null,null,null,null,null,null,null,null,null,null,null,null,null,"http://www.adheos.org/fichierUploader/2013_ADHEOS_samy.pdf",null,null,null,null,null,null,null,null,null,null,null,null,null,null,null,null,6]
[null,null,null,null,null,null,null,null,null,null,null,null,null,null,null,null,null,null,null,null,null,null,null,null,null,null,null,null,null,null,null,null,null,null,null,null,null,null,null,null,null,null,null,null,null,null,null,null,7]
[null,null,null,null,null,null,null,null,null,null,null,null,null,null,null,null,null,null,null,null,null,null,null,null,null,null,null,null,null,null,null,null,null,null,null,null,null,null,null,null,null,null,null,null,null,null,null,null,8]
[null,null,null,null,null,null,null,null,null,null,null,null,null,null,null,null,null,null,null,null,null,null,null,null,null,null,null,null,null,null,null,null,null,null,null,null,null,null,null,null,null,null,null,null,null,null,null,null,9]
[null,null,"Quantité :    ",null,null,null,null,null,null,null,null,"Quantité :    ",null,null,null,null,null,null,null,null,"Quantité :    ",null,null,null,null,null,null,null,null,null,null,null,null,null,null,null,null,null,null,null,null,null,null,null,null,null,null,null,10]
[null,null,null,null,null,null,null,null,null,null,null,null,null,null,null,null,null,null,null,null,null,null,null,null,null,null,null,null,null,null,null,null,null,null,null,null,null,null,null,null,null,null,null,null,null,null,null,null,11]
[null,null,null,null,null,null,null,null,null,null,null,null,null,null,null,null,null,null,null,null,null,null,null,null,null,null,null,null,null,null,null,null,null,null,null,null,null,null,null,null,null,null,null,null,null,null,null,null,12]
[null,null,"NON A L'HOMOPHOBIE !",null,null,null,null,null,null,null,null,"DIS NON A L'HOMOPHOBIE !",null,null,null,null,null,null,null,null,"HOMOPHOBIE : REAGISSEZ !",null,null,null,null,null,null,null,null,null,null,null,null,null,null,null,null,null,null,null,null,null,null,null,null,null,null,null,13]
[null,null,null,null,null,null,null,null,null,null,null,null,null,null,null,null,null,null,null,null,null,null,null,null,null,null,null,null,null,null,null,null,null,null,null,null,null,null,null,null,null,null,null,null,null,null,null,null,14]
[null,null,null,"http://www.adheos.org/fichierUploader/2013_ADHEOS_toilettes.pdf",null,null,null,null,null,null,null,null,"http://www.adheos.org/fichierUploader/2013_ADHEOS_placard.pdf",null,null,null,null,null,null,null,null,"http://www.adheos.org/fichierUploader/2013_ADHEOS_sale_gouine.pdf",null,null,null,null,null,null,null,null,null,"NON A L'HOMOPHOBIE",null,null,null,null,null,null,null,null,null,null,null,null,null,null,null,null,15]
[null,null,null,null,null,null,null,null,null,null,null,null,null,null,null,null,null,null,null,null,null,null,null,null,null,null,null,null,null,null,null,"http://www.adheos.org/fichierUploader/2013_ADHEOS_toilettes.pdf",null,null,null,null,null,null,null,null,null,null,null,null,null,null,null,null,16]
[null,null,null,null,null,null,null,null,null,null,null,null,null,null,null,null,null,null,null,null,null,null,null,null,null,null,null,null,null,null,null,null,null,null,null,null,null,null,null,null,null,null,null,null,null,null,null,null,17]
[null,null,null,null,null,null,null,null,null,null,null,null,null,null,null,null,null,null,null,null,null,null,null,null,null,null,null,null,null,null,null,{"$f":"L76","v":"DIS NON A L'HOMOPHOBIE !"},null,null,null,null,null,null,null,null,null,null,null,null,null,null,null,null,18]
[null,null,null,null,null,null,null,null,null,null,null,null,null,null,null,null,null,null,null,null,null,null,null,null,null,null,null,null,null,null,null,"http://www.adheos.org/fichierUploader/2013_ADHEOS_placard.pdf",null,null,null,null,null,null,null,null,null,null,null,null,null,null,null,null,19]
[null,null,null,null,null,null,null,null,null,null,null,null,null,null,null,null,null,null,null,null,null,null,null,null,null,null,null,null,null,null,null,null,null,null,null,null,null,null,null,null,null,null,null,null,null,null,null,null,20]
[null,null,null,null,null,null,null,null,null,null,null,null,null,null,null,null,null,null,null,null,null,null,null,null,null,null,null,null,null,null,null,"HOMOPHOBIE :REAGISSEZ",null,null,null,null,null,null,null,null,null,null,null,null,null,null,null,null,21]
[null,null,null,null,null,null,null,null,null,null,null,null,null,null,null,null,null,null,null,null,null,null,null,null,null,null,null,null,null,null,null,"http://www.adheos.org/fichierUploader/2013_ADHEOS_sale_gouine.pdf",null,null,null,null,null,null,null,null,null,null,null,null,null,null,null,null,22]
[null,null,null,null,null,null,null,null,null,null,null,null,null,null,null,null,null,null,null,null,null,null,null,null,null,null,null,null,null,null,null,null,null,null,null,null,null,null,null,null,null,null,null,null,null,null,null,null,23]
[null,null,null,null,null,null,null,null,null,null,null,null,null,null,null,null,null,null,null,null,null,null,null,null,null,null,null,null,null,null,null,null,null,null,null,null,null,null,null,null,null,null,null,null,null,null,null,null,24]
[null,null,"Quantité :    ",null,null,null,null,null,null,null,null,"Quantité :    ",null,null,null,null,null,null,null,null,"Quantité :    ",null,null,null,null,null,null,null,null,null,null,null,null,null,null,null,null,null,null,null,null,null,null,null,null,null,null,null,25]
[null,null,null,null,null,null,null,null,null,null,null,null,null,null,null,null,null,null,null,null,null,null,null,null,null,null,null,null,null,null,null,null,null,null,null,null,null,null,null,null,null,null,null,null,null,null,null,null,26]
[null,null,null,null,null,null,null,null,null,null,null,null,null,null,null,null,null,null,null,null,null,null,null,null,null,null,null,null,null,null,null,null,null,null,null,null,null,null,null,null,null,null,null,null,null,null,null,null,27]
[null,null,"OUTING HOMOPHOBE ",null,null,null,null,null,null,null,null,"NE RESTEZ PAS SEUL-E",null,null,null,null,null,null,null,null,"AFFICHE ADHEOS",null,null,null,null,null,null,null,null,null,null,null,null,null,null,null,null,null,null,null,null,null,null,null,null,null,null,null,28]
[null,null,null,null,null,null,null,null,null,null,null,null,null,null,null,null,null,null,null,null,null,null,null,null,null,null,null,null,null,null,null,"OUTING HOMOPHOBE",null,null,null,null,null,null,null,null,null,null,null,null,null,null,null,null,29]
[null,null,null,"http://www.adheos.org/fichierUploader/2013_ADHEOS_fille_bd.pdf",null,null,null,null,null,null,null,null,"http://www.adheos.org/fichierUploader/2013_affiche-ne-restez-pas-seul-A2.pdf",null,null,null,null,null,null,null,null,"http://www.adheos.org/fichierUploader/2013_ADHEOS_fond_afficheA2.pdf    ",null,null,null,null,null,null,null,null,null,"http://www.adheos.org/fichierUploader/2013_ADHEOS_fille_bd.pdf",null,null,null,null,null,null,null,null,null,null,null,null,null,null,null,null,30]
[null,null,null,null,null,null,null,null,null,null,null,null,null,null,null,null,null,null,null,null,null,null,null,null,null,null,null,null,null,null,null,null,null,null,null,null,null,null,null,null,null,null,null,null,null,null,null,null,31]
[null,null,null,null,null,null,null,null,null,null,null,null,null,null,null,null,null,null,null,null,null,null,null,null,null,null,null,null,null,null,null,null,null,null,null,null,null,null,null,null,null,null,null,null,null,null,null,null,32]
[null,null,null,null,null,null,null,null,null,null,null,null,null,null,null,null,null,null,null,null,null,null,null,null,null,null,null,null,null,null,null,"NE RESTEZ PAS SEUL",null,null,null,null,null,null,null,null,null,null,null,null,null,null,null,null,33]
[null,null,null,null,null,null,null,null,null,null,null,null,null,null,null,null,null,null,null,null,null,null,null,null,null,null,null,null,null,null,null,"http://www.adheos.org/fichierUploader/2013_affiche-ne-restez-pas-seul-A2.pdf",null,null,null,null,null,null,null,null,null,null,null,null,null,null,null,null,34]
[null,null,null,null,null,null,null,null,null,null,null,null,null,null,null,null,null,null,null,null,null,null,null,null,null,null,null,null,null,null,null,null,null,null,null,null,null,null,null,null,null,null,null,null,null,null,null,null,35]
[null,null,null,null,null,null,null,null,null,null,null,null,null,null,null,null,null,null,null,null,null,null,null,null,null,null,null,null,null,null,null,"AFFICHE ADHEOS",null,null,null,null,null,null,null,null,null,null,null,null,null,null,null,null,36]
[null,null,null,null,null,null,null,null,null,null,null,null,null,null,null,null,null,null,null,null,null,null,null,null,null,null,null,null,null,null,null,"http://www.adheos.org/fichierUploader/2013_ADHEOS_fond_afficheA2.pdf    ",null,null,null,null,null,null,null,null,null,null,null,null,null,null,null,null,37]
[null,null,null,null,null,null,null,null,null,null,null,null,null,null,null,null,null,null,null,null,null,null,null,null,null,null,null,null,null,null,null,null,null,null,null,null,null,null,null,null,null,null,null,null,null,null,null,null,38]
[null,null,null,null,null,null,null,null,null,null,null,null,null,null,null,null,null,null,null,null,null,null,null,null,null,null,null,null,null,null,null,null,null,null,null,null,null,null,null,null,null,null,null,null,null,null,null,null,39]
[null,null,"Quantité :    ",null,null,null,null,null,null,null,null,"Quantité :    ",null,null,null,null,null,null,null,null,"Quantité :    ",null,null,null,null,null,null,null,null,null,null,null,null,null,null,null,null,null,null,null,null,null,null,null,null,null,null,null,40]
[null,null,null,null,null,null,null,null,null,null,null,null,null,null,null,null,null,null,null,null,null,null,null,null,null,null,null,null,null,null,null,null,null,null,null,null,null,null,null,null,null,null,null,null,null,null,null,null,41]
[null,null,null,null,null,null,null,null,null,null,null,null,null,null,null,null,null,null,null,null,null,null,null,null,null,null,null,null,null,null,null,null,null,null,null,null,null,null,null,null,null,null,null,null,null,null,null,null,42]
[null,null,null,null,null,null,null,null,null,null,null,null,null,null,null,null,null,null,null,null,null,null,null,null,null,null,null,null,null,null,null,null,null,null,null,null,null,null,null,null,null,null,null,null,null,null,null,null,43]
[null,null,null,null,null,null,null,null,null,null,null,null,null,null,null,null,null,null,null,null,null,null,null,null,null,null,null,null,null,null,null,null,null,null,null,null,null,null,null,null,null,null,null,null,null,null,null,null,44]
[null,null,"CARTE MONDIALE",null,null,null,null,null,"DE L'HOMOPHOBIE",null,null,null,null,null,null,"NE RESTEZ PAS SEUL",null,null,null,null,null,null,null,null,null,null,null,null,null,null,null,{"$f":"C108","v":"CARTE MONDIALE"},null,null,null,null,null,null,null,null,null,null,null,null,null,null,null,null,45]
[null,null,null,null,null,null,null,null,null,null,null,null,null,null,null,null,null,null,null,null,null,null,null,null,null,null,null,null,null,null,null,"http://www.adheos.org/fichierUploader/2013_carte_mondiale_homophobie.pdf",null,null,null,null,null,null,null,null,null,null,null,null,null,null,null,null,46]
[null,null,null,"http://www.adheos.org/fichierUploader/2013_carte_mondiale_homophobie.pdf",null,null,null,null,null,"http://www.adheos.org/fichierUploader/2013_carte_mondiale_homophobie.pdf",null,null,null,null,null,null,"http://www.adheos.org/fichierUploader/2013_carte-solitude-homophobie-academie.pdf",null,null,null,null,null,"http://www.adheos.org/fichierUploader/2013_carte-solitude-homophobie-academie.pdf",null,null,null,null,null,null,null,null,null,null,null,null,null,null,null,null,null,null,null,null,null,null,null,null,null,47]
[null,null,null,null,null,null,null,null,null,null,null,null,null,null,null,null,null,null,null,null,null,null,null,null,null,null,null,null,null,null,null,{"$f":"P108","v":"NE RESTEZ PAS SEUL"},null,null,null,null,null,null,null,null,null,null,null,null,null,null,null,null,48]
[null,null,null,null,null,null,null,null,null,null,null,null,null,null,null,null,null,null,null,null,null,null,null,null,null,null,null,null,null,null,null,"http://www.adheos.org/fichierUploader/2013_carte-solitude-homophobie-academie.pdf",null,null,null,null,null,null,null,null,null,null,null,null,null,null,null,null,49]
[null,null,null,null,null,null,null,null,null,null,null,null,null,null,null,null,null,null,null,null,null,null,null,null,null,null,null,null,null,null,null,null,null,null,null,null,null,null,null,null,null,null,null,null,null,null,null,null,50]
[null,null,null,null,null,null,null,null,null,null,null,null,null,null,null,null,null,null,null,null,null,null,null,null,null,null,null,null,null,null,null,null,null,null,null,null,null,null,null,null,null,null,null,null,null,null,null,null,51]
[null,null,"                                                Quantité :",null,null,null,null,null,null,null,null,null,null,null,null,"                                             Quantité : ",null,null,null,null,null,null,null,null,null,null,null,null,null,null,null,null,null,null,null,null,null,null,null,null,null,null,null,null,null,null,null,null,52]
[null,null,null,null,null,null,null,null,null,null,null,null,null,null,null,null,null,null,null,null,null,null,null,null,null,null,null,null,null,null,null,null,null,null,null,null,null,null,null,null,null,null,null,null,null,null,null,null,53]
[null,null,null,null,null,null,null,null,null,null,null,null,null,null,null,null,null,null,null,null,null,null,null,null,null,null,null,null,null,null,null,null,null,null,null,null,null,null,null,null,null,null,null,null,null,null,null,null,54]
[null,null,null,null,null,null,null,null,null,null,null,null,null,null,null,null,null,null,null,null,null,null,null,null,null,null,null,null,null,null,null,null,null,null,null,null,null,null,null,null,null,null,null,null,null,null,null,null,55]
[null,null,null,null,null,null,null,null,null,null,null,null,null,null,null,null,null,null,null,null,null,null,null,null,null,null,null,null,null,null,null,null,null,null,null,null,null,null,null,null,null,null,null,null,null,null,null,null,56]
[null,null,null,null,null,null,null,null,null,null,null,null,null,null,null,null,null,null,null,null,null,null,null,null,null,null,null,null,null,null,null,null,null,null,null,null,null,null,null,null,null,null,null,null,null,null,null,null,57]
[null,null,"       BROCHURES",null,null,null,null,null,null,null,null,"AFFICHES",null,null,null,null,null,null,null,null,"CARTES POSTALES",null,null,null,null,null,null,null,null,null,null,null,null,null,null,"cell. Destination ascenceurs",null,null,null,null,null,null,null,null,null,null,null,null,58]
[null,null," Titres",null,null,null,null," Quantité",null,null,null,"                   Titres",null,null,null,null,"Quantité",null,null,null,"                Titres",null,null,null,null,"                 Quantité",null,null,null,null,null,null,null,null,null,"AI",null,"AK",null,"AM",null,null,null,null,null,null,null,null,59]
[null,null,{"$f":"IF(I123=\"\",\" \",IF(I123>0,J30))","v":""},null,null,null,null,null,{"$f":"IF(AJ123-1=0,\"\",AJ123-1)","v":""},null,"c46",{"$f":"IF(R123=\"\",\" \",IF(R123>0,C46))","v":""},null,null,null,null,null,{"$f":"IF(AL123-1=0,\"\",AL123-1)","v":""},null,"C108",{"$f":"IF(AA123=\"\",\"\",IF(AA123>0,C108))","v":""},null,null,null,null,null,{"$f":"IF(AN123-1=0,\"\",AN123-1)","v":""},null,null,null,null,null,null,null,null,1,null,1,null,1,null,null,null,null,null,null,null,null,60]
[null,null,{"$f":"IF(I124=\"\",\" \",IF(I124>0,J15))","v":""},null,null,null,null,null,{"$f":"IF(AJ124-1=0,\"\",AJ124-1)","v":""},null,"L46",{"$f":"IF(R124=\"\",\" \",IF(R124>0,L46))","v":""},null,null,null,null,null,"",null,"P108",{"$f":"IF(AA124=\"\",\"\",IF(AA124>0,P108))","v":""},null,null,null,null,null,{"$f":"IF(AN124-1=0,\"\",AN124-1)","v":""},null,null,null,null,null,null,null,null,1,null,1,null,1,null,null,null,null,null,null,null,null,61]
[null,null,{"$f":"IF(I125=\"\",\" \",IF(I125>0,Q15))","v":""},null,null,null,null,null,{"$f":"IF(AJ125-1=0,\"\",AJ125-1)","v":""},null,"U46",{"$f":"IF(R125=\"\",\" \",IF(R125>0,U46))","v":""},null,null,null,null,null,"",null,null,null,null,null,null,null,null,null,null,null,null,null,null,null,null,null,1,null,1,null,null,null,null,null,null,null,null,null,null,62]
[null,null,{"$f":"IF(I126=\"\",\" \",IF(I126>0,X15))","v":""},null,null,null,null,null,"",null,"C61",{"$f":"IF(R126=\"\",\" \",IF(R126>0,C61))","v":""},null,null,null,null,null,"",null,null,null,null,null,null,null,null,null,null,null,null,null,null,null,null,null,1,null,1,null,null,null,null,null,null,null,null,null,null,63]
[null,null,{"$f":"IF(I127=\"\",\" \",IF(I127>0,C30))","v":" "},null,null,null,null,null,"",null,"L61",{"$f":"IF(R127=\"\",\" \",IF(R127>0,L61))","v":""},null,null,null,null,null,"",null,null,null,null,null,null,null,null,null,null,null,null,null,null,null,null,null,1,null,1,null,null,null,null,null,null,null,null,null,null,64]
[null,null,{"$f":"IF(I128=\"\",\" \",IF(I128>0,C15))","v":" "},null,null,null,null,null,"",null,"U61",{"$f":"IF(R128=\"\",\" \",IF(R128>0,U61))","v":""},null,null,null,null,null,"",null,null,"Total Cartes",null,null,null,null,null,{"$f":"SUM(AA123:AA125)","v":0},null,null,null,null,null,null,null,null,1,null,1,null,null,null,null,null,null,null,null,null,null,65]
[null,null,{"$f":"IF(I129=\"\",\" \",IF(I129>0,Q30))","v":" "},null,null,null,null,null,"",null,"C76",{"$f":"IF(R129=\"\",\" \",IF(R129>0,C76))","v":""},null,null,null,null,null,"",null,null,null,null,null,null,null,null,null,null,null,null,null,null,null,null,null,1,null,1,null,null,null,null,null,null,null,null,null,null,66]
[null,null,{"$f":"IF(I130=\"\",\" \",IF(I130>0,X30))","v":" "},null,null,null,null,null,"",null,"L76",{"$f":"IF(R130=\"\",\" \",IF(R130>0,L76))","v":""},null,null,null,null,null,"",null,null,null,null,null,null,null,null,null,null,null,null,null,null,null,null,null,1,null,1,null,null,null,null,null,null,null,null,null,null,67]
[null,null,null,null,null,null,null,null,null,null,"U76",{"$f":"IF(R131=\"\",\" \",IF(R131>0,U76))","v":""},null,null,null,null,null,"",null,null,null,null,null,null,null,null,null,null,null,null,null,null,null,null,null,null,null,1,null,null,null,null,null,null,null,null,null,null,68]
[null,null,"Total Brochures",null,null,null,null,null,{"$f":"SUM(I123:I130)","v":0},null,"C91",{"$f":"IF(R132=\"\",\" \",IF(R132>0,C91))","v":""},null,null,null,null,null,"",null,null,"Total articles",null,null,null,null,{"$f":"I132+R136+AA128","v":0},null,null,null,null,null,null,null,null,null,null,null,1,null,null,null,null,null,null,null,null,null,null,69]
[null,null,null,null,null,null,null,null,null,null,"L91",{"$f":"IF(R133=\"\",\" \",IF(R133>0,L91))","v":""},null,null,null,null,null,"",null,null,null,null,null,null,null,null,null,null,null,null,null,null,null,null,null,null,null,1,null,null,null,null,null,null,null,null,null,null,70]
[null,null,null,null,null,null,null,null,null,null,"U91",{"$f":"IF(R134=\"\",\" \",IF(R134>0,U91))","v":""},null,null,null,null,null,"",null,null,null,null,null,null,null,null,null,null,null,null,null,null,null,null,null,null,null,1,null,null,null,null,null,null,null,null,null,null,71]
[null,null,null,null,null,null,null,null,null,null,null,null,null,null,null,null,null,null,null,null,null,null,null,null,null,null,null,null,null,null,null,null,null,null,null,null,null,null,null,null,null,null,null,null,null,null,null,null,72]
[null,null,null,null,null,null,null,null,null,null,null,"Total Affiches",null,null,null,null,null,{"$f":"SUM(R123:R135)","v":0},null,null,null,null,null,null,null,null,null,null,null,null,null,null,null,null,null,null,null,null,null,null,null,null,null,null,null,null,null,null,73]
[null,null,null,null,null,null,null,null,null,null,null,null,null,null,null,null,null,null,null,null,null,null,null,null,null,null,null,null,null,null,null,null,null,null,null,null,null,null,null,null,null,null,null,null,null,null,null,null,74]
[null,null,null,null,null,null,null,null,null,null,null,null,null,null,null,null,null,null,null,null,null,null,null,null,null,null,null,null,null,null,null,null,null,null,null,null,null,null,null,null,null,null,null,null,null,null,null,null,75]
[null,null,null,null,null,null,null,null,null,null,null,null,null,null,null,null,null,null,null,null,null,null,null,null,null,null,null,null,null,null,null,null,null,null,null,null,null,null,null,null,null,null,null,null,null,null,null,null,76]
[null,null,"Nom et Prénom : ",null,null,null,null,null,null,null,null,null,null,null,null,null,null,null,null,null,null,null,null,null,null,null,null,null,null,null,null,null,null,null,null,null,null,null,null,null,null,null,null,null,null,null,null,null,77]
[null,null,null,null,null,null,null,null,null,null,null,null,null,null,null,null,null,null,null,null,null,null,null,null,null,null,null,null,null,null,null,null,null,null,null,null,null,null,null,null,null,null,null,null,null,null,null,null,78]
[null,null,"Fonction exercée :",null,null,null,null,null,null,null,null,null,null,null,null,null,null,null,null,null,null,null,null,null,null,null,null,null,null,null,null,null,null,null,null,null,null,null,null,null,null,null,null,null,null,null,null,null,79]
[null,null,null,null,null,null,null,null,null,null,null,null,null,null,null,null,null,null,null,null,null,null,null,null,null,null,null,null,null,null,null,null,null,null,null,null,null,null,null,null,null,null,null,null,null,null,null,null,80]
[null,null,"Tél. :",null,null,null,null,null,null,null,null,null,null,null,null,null,"Port. :",null,null,null,null,null,null,null,null,null,null,null,null,null,null,null,null,null,null,null,null,null,null,null,null,null,null,null,null,null,null,null,81]
[null,null,null,null,null,null,null,null,null,null,null,null,null,null,null,null,null,null,null,null,null,null,null,null,null,null,null,null,null,null,null,null,null,null,null,null,null,null,null,null,null,null,null,null,null,null,null,null,82]
[null,null,"E-mail :",null,null,null,null,null,null,null,null,null,null,null,null,null,null,null,null,null,null,null,null,null,null,null,null,null,null,null,null,null,null,null,null,null,null,null,null,null,null,null,null,null,null,null,null,null,83]
[null,null,null,null,null,null,null,null,null,null,null,null,null,null,null,null,null,null,null,null,null,null,null,null,null,null,null,null,null,null,null,null,null,null,null,null,null,null,null,null,null,null,null,null,null,null,null,null,84]
[null,null,"Etablissement :",null,null,null,null,null,null,null,null,null,null,null,null,null,null,null,null,null,null,null,null,null,null,null,null,null,null,null,null,null,null,null,null,null,null,null,null,null,null,null,null,null,null,null,null,null,85]
[null,null,null,null,null,null,null,null,null,null,null,null,null,null,null,null,null,null,null,null,null,null,null,null,null,null,null,null,null,null,null,null,null,null,null,null,null,null,null,null,null,null,null,null,null,null,null,null,86]
[null,null,"Dénomination :",null,null,null,null,null,null,null,null,null,null,null,null,null,null,null,null,null,null,null,null,null,null,null,null,null,null,null,null,null,null,null,null,null,null,null,null,null,null,null,null,null,null,null,null,null,87]
[null,null,null,null,null,null,null,null,null,null,null,null,null,null,null,null,null,null,null,null,null,null,null,null,null,null,null,null,null,null,null,null,null,null,null,null,null,null,null,null,null,null,null,null,null,null,null,null,88]
[null,null,"Adresse : ",null,null,null,null,null,null,null,null,null,null,null,null,null,null,null,null,null,null,null,null,null,null,null,null,null,null,null,null,null,null,null,null,null,null,null,null,null,null,null,null,null,null,null,null,null,89]
[null,null,null,null,null,null,null,null,null,null,null,null,null,null,null,null,null,null,null,null,null,null,null,null,null,null,null,null,null,null,null,null,null,null,null,null,null,null,null,null,null,null,null,null,null,null,null,null,90]
[null,null,null,null,null,null,null,null,null,null,null,null,null,null,null,null,null,null,null,null,null,null,null,null,null,null,null,null,null,null,null,null,null,null,null,null,null,null,null,null,null,null,null,null,null,null,null,null,91]
[null,null,"Code postal : ",null,null,null,null,null,null,null,null,null,null,"Ville :",null,null,null,null,null,null,null,null,null,null,null,null,null,null,null,null,null,null,null,null,null,null,null,null,null,null,null,null,null,null,null,null,null,null,92]
[null,null,null,null,null,null,null,null,null,null,null,null,null,null,null,null,null,null,null,null,null,null,null,null,null,null,null,null,null,null,null,null,null,null,null,null,null,null,null,null,null,null,null,null,null,null,null,null,93]
[null,null,"Commentaires :",null,null,null,null,null,null,null,null,null,null,null,null,null,null,null,null,null,null,null,null,null,null,null,null,null,null,null,null,null,null,null,null,null,null,null,null,null,null,null,null,null,null,null,null,null,94]
[null,null,null,null,null,null,null,null,null,null,null,null,null,null,null,null,null,null,null,null,null,null,null,null,null,null,null,null,null,null,null,null,null,null,null,null,null,null,null,null,null,null,null,null,null,null,null,null,95]
[null,null,null,null,null,null,null,null,"               Bon de commande à imprimer et envoyer à :    ",null,null,null,null,null,null,null,null,null,null,null,null,null,null,null,null,null,null,null,null,null,null,null,null,null,null,null,null,null,null,null,null,null,null,null,null,null,null,null,96]
[null,null,"    ADHEOS, 5 impasse de l'Ancienne Caserne                17100 SAINTES",null,null,null,null,null,null,null,null,null,null,null,null,null,null,null,null,null,null,null,null,null,null,null,null,null,null,null,null,null,null,null,null,null,null,null,null,null,null,null,null,null,null,null,null,null,97]
[null,null,null,null,null,null,null,null,null,null,null,null,null,null,null,null,null,null,null,null,null,null,null,null,null,null,null,null,null,null,null,null,null,null,null,null,null,null,null,null,null,null,null,null,null,null,null,null,98]
[null,null,"                                          ( 06 26 39 66 13",null,null,null,null,null,null,null,null,null,null,null,null,null,null,null,null,null,null,null,null,null,null,null,null,null,null,null,null,null,null,null,null,null,null,null,null,null,null,null,null,null,null,null,null,null,99]
[null,null,null,null,null,null,null,null,null,null,null,null,null,null,null,null,null,null,null,null,null,null,null,null,null,null,null,null,null,null,null,null,null,null,null,null,null,null,null,null,null,null,null,null,null,null,null,null,100]
[]
[]
[]
[null,null,null,null,null,"Ou enregistrer ce fichier et l'envoyer par e-mail à : ",null,null,null,null,null,null,null,null,null,null,null,"   contact@adheos.org",null,null,null,null,")"]

{"sheet":"Feuil2","index":1,"n_rows":45,"n_cols":24,"rows_kept":45,"cut":false,"hidden":false,"merged":[[18,15,18,16],[3,0,3,6],[3,9,3,15],[3,18,3,24],[4,0,4,4],[4,5,4,7],[4,9,4,13],[4,14,4,16],[4,18,4,22],[10,24,10,25],[22,0,22,4],[22,5,22,23],[24,0,24,4],[24,5,24,23],[26,0,26,4],[26,5,26,10],[26,12,26,13],[26,14,26,20],[28,0,28,4],[28,5,28,23],[30,0,30,4],[30,5,30,23],[32,0,32,4],[32,5,32,23],[44,0,44,25],[34,0,35,4],[34,5,34,23],[35,5,35,23],[37,0,37,4],[40,0,40,24],[42,0,43,24],[39,0,39,4],[39,5,39,23]]}
[]
[]
[]
["       BROCHURES",null,null,null,null,null,null,null,null,"AFFICHES",null,null,null,null,null,null,null,null,"CARTES POSTALES"]
["                 Titres",null,null,null,null," Quantité",null,null,null,"                   Titres",null,null,null,null,"Quantité",null,null,null,"                Titres",null,null,null,null,"          Quantité"]
[null,null,null,null,null,null,null,null,"c39",{"$f":"IF(P6=0,\"\",#REF!)","v":""},null,null,null,null,null,null,null,"C101",{"$f":"IF(Y6=0,\"\",#REF!)","v":""}]
[null,null,null,null,null,null,null,null,"L39",{"$f":"IF(P7=0,\"\",#REF!)","v":""},null,null,null,null,null,null,null,"P101",{"$f":"IF(Y7=0,\"\",#REF!)","v":""}]
[null,null,null,null,null,null,null,null,"U39",{"$f":"IF(P8=0,\"\",#REF!)","v":""}]
[null,null,null,null,null,null,null,null,"C54",{"$f":"IF(P9=0,\"\",#REF!)","v":""}]
[null,null,null,null,null,null,null,null,"L54",{"$f":"IF(P10=0,\"\",#REF!)","v":""}]
[null,null,null,null,null,null,null,null,"U54",{"$f":"IF(P11=0,\"\",#REF!)","v":""},null,null,null,null,null,null,null,null,"Total Cartes"]
[null,null,null,null,null,null,null,null,"C69",{"$f":"IF(P12=0,\"\",#REF!)","v":""}]
[null,null,null,null,null,null,null,null,"L69",{"$f":"IF(P13=0,\"\",#REF!)","v":""}]
[null,null,null,null,null,null,null,null,"U69",{"$f":"IF(P14=0,\"\",#REF!)","v":""}]
[null,null,null,null,null,null,null,null,"C84",{"$f":"IF(P15=0,\"\",#REF!)","v":""}]
["Total Brochures",null,null,null,null,null,null,null,"L84",{"$f":"IF(P16=0,\"\",#REF!)","v":""}]
[null,null,null,null,null,null,null,null,"U84",{"$f":"IF(P17=0,\"\",#REF!)","v":""}]
[]
[null,null,null,null,null,null,null,null,null,"Total Affiches"]
[]
[null,null,null,null,null,null,null,null,null,null,null,null,null,null,null,null,null,null,"Total articles"]
[]
["Nom et Prénom : "]
[]
["Fonction exercée :"]
[]
["Tél. :",null,null,null,null,null,null,null,null,null,null,null,"Port. :"]
[]
["E-mail :"]
[]
["Etablissement :"]
[]
["Dénomination :"]
[]
["Adresse : "]
[]
[]
["Code postal : ",null,null,null,null,null,null,null,null,null,null,"Ville :"]
[]
["Commentaires :"]
["Envoyer à :      "]
[]
["ADHEOS, 5 impasse de l'Ancienne Caserne                             17100        SAINTES"]
[]
["( 06 26 39 66 13"]

{"sheet":"Feuil3","index":2,"n_rows":0,"n_cols":0,"rows_kept":0,"cut":false,"hidden":false,"merged":[]}